Cogmind - Beta 13 @@@ ROGUE MODE // 2024.03.31 @ 18:22:53 Player: Xeros08 Result: Destroyed by G-47 Trooper with Particle Gun Performance ------------- Evolutions (2) 1000 Regions Visited (6) 1200 Robots Destroyed (70) 350 Value Destroyed (1794) 1794 Prototype IDs (0) 0 Alien Tech Used (0) 0 Bonus (155) 155 TOTAL SCORE: 4499 Bonus ------- High Alert Combat Kills 68 Follower Combat Kills 126 Friendly Fire -39 Cogmind --------- Core Integrity 0/550 Matter 57/300 Energy 90/100 System Corruption 0% Temperature Cool (9) Movement Flying (115) Ox1 Location -8/Storage Parts ------- > --- POWER (2) -------- (None) > --- PROPULSION (3) --- Cesium-ion Thruster > --- UTILITY (4) ------ Medium Storage Unit Hacking Suite > --- WEAPON (2) ------- (None) > --- INVENTORY (10) --- Improved Datajack Peak State ------------ > --- POWER ------------ Light Ion Engine Light Nuclear Core > --- PROPULSION ------- Airjet Airjet Airjet > --- UTILITY ---------- Improved Heat Sink Improved Heat Sink Medium Storage Unit Propulsion Shielding > --- WEAPON ----------- Heavy Particle Cannon Mini Grenade Launcher > --- INVENTORY -------- Flight Unit VTOL Module Hacking Suite High-powered Shotgun Improved Datajack Plasma Cutter [Rating: 27] Favorites ----------- Power Light Ion Engine Engine Light Ion Engine Power Core Light Nuclear Core Propulsion Flight Unit Treads Light Treads Leg Aluminum Leg Wheel Wheel Hover Unit Airjet Flight Unit Flight Unit Utility Medium Storage Unit Device Heat Sink Storage Medium Storage Unit Hackware Hacking Suite Protection Propulsion Shielding Weapon Beam Rifle Energy Gun Beam Rifle Energy Cannon Heavy Particle Cannon Ballistic Gun Light Assault Rifle Ballistic Cannon Light Cannon Launcher Grenade Launcher Special Weapon Plasma Cutter Special Melee Weapon Datajack Build | -11 -10 -10 -9 -9 -8 -8 ------- Run | Yrd Mat Min Mat Min Mat Sto Slots Evolved 4 | . . . 2 . 2 . Power 1 | . . . 1 . . . Propulsion 1 | . . . 1 . . . Utility 2 | . . . . . 2 . Weapon . | . . . . . . . Parts Attached 74 | 7 16 12 5 3 24 7 Power 11 | 1 1 2 2 . 5 . Engine 8 | 1 1 1 2 . 3 . Core 3 | . . 1 . . 2 . Reactor . | . . . . . . . Propulsion 28 | 4 4 4 2 3 8 3 Treads 4 | . 1 2 . . 1 . Leg 2 | 2 . . . . . . Wheel 7 | 2 1 . 2 . . 2 Hover 4 | . . . . . 4 . Flight 11 | . 2 2 . 3 3 1 Utility 11 | . 4 1 1 . 5 . Device 6 | . 3 . . . 3 . Storage 2 | . 1 . 1 . . . Processor . | . . . . . . . Hackware 1 | . . . . . 1 . Protection 2 | . . 1 . . 1 . Artifact . | . . . . . . . Weapon 24 | 2 7 5 . . 6 4 Energy Gun 5 | 2 1 2 . . . . Energy Cannon 2 | . . . . . 2 . Ballistic Gun 5 | . 1 2 . . 1 1 Ballistic Cannon 1 | . . 1 . . . . Launcher 5 | . 2 . . . 2 1 Special Weapon 2 | . 1 . . . . 1 Impact Weapon . | . . . . . . . Slashing Weapon . | . . . . . . . Piercing Weapon . | . . . . . . . Special Melee Weapon 4 | . 2 . . . 1 1 Unidentified Prototypes . | . . . . . . . Parts Lost 33 | . 5 6 . . 13 9 Power 8 | . 1 1 . . 5 1 Propulsion 12 | . 1 2 . . 6 3 Utility 5 | . 1 1 . . 1 2 Weapon 8 | . 2 2 . . 1 3 Highest Loss Streak 9 | . 2 4 . . 5 9 To Critical Strikes . | . . . . . . . Average Slot Usage (%) 87 | . 92 73 95 100 85 70 Engine 12 | . 13 5 22 22 6 6 Core 2 | . . 6 . . 6 . Treads 6 | . 2 13 22 6 . 6 Wheel 8 | . 24 1 6 3 . 9 Hover 1 | . . . . . 5 . Flight 9 | . . 6 . 22 18 . Device 6 | . 11 1 . . 13 7 Storage 11 | . 11 14 11 11 9 9 Protection 6 | . . 4 11 11 7 9 Energy Gun 5 | . 5 1 11 11 4 . Energy Cannon 1 | . . . . . 7 . Ballistic Gun 4 | . 5 13 . . . 7 Ballistic Cannon 3 | . . 2 11 11 1 . Launcher 4 | . 11 1 . . 3 5 Special Melee Weapon 1 | . 3 . . . . 1 Naked Turns . | . . . . . . . Heaviest Build 30 | 7 16 15 23 23 30 24 Greatest Support 40 | 20 20 40 40 40 24 20 Greatest Overweight (x) 4 | . 1 3 1 1 4 4 Average Overweight (x) . | . . . . . 1 1 Largest Inventory Capacity 10 | 5 8 8 10 10 10 10 Average Capacity 8 | 5 7 8 9 10 10 10 Most Carried 9 | 5 8 5 4 7 9 2 Average Carried 4 | 2 5 3 3 3 5 1 Final Capacity 10 | 5 8 8 10 10 10 10 Final Carried 5 | 5 5 3 4 3 3 1 Class Distribution -------------------- 50% | Scavenger-Mutant 49% | Mutant Dominant Class ---------------- Mutant | -10/Materials Mutant | -10/Mines Scavenger-Mutant | -9/Materials Scavenger-Mutant | -9/Mines Scavenger-Mutant | -8/Materials Scavenger-Mutant | -8/Storage Resources | -11 -10 -10 -9 -9 -8 -8 ----------- Run | Yrd Mat Min Mat Min Mat Sto Matter Collected 1221 | 270 324 207 40 94 221 65 Remotely . | . . . . . . . Salvage Created 1715 | 48 443 113 . 46 912 153 Parts 124 | 2 41 10 . . 58 13 Haulers Intercepted 2 | . . . . . . 2 Recyclers Shooed 2 | . 1 . . . . 1 Parts Field Recycled . | . . . . . . . Retrieved Matter . | . . . . . . . Parts Self-Destructed . | . . . . . . . Prevented . | . . . . . . . Kills | -11 -10 -10 -9 -9 -8 -8 ------- Run | Yrd Mat Min Mat Min Mat Sto Combat Hostiles Destroyed 44 | 1 15 5 . 1 19 3 Guns 8 | . 3 3 . . 1 1 Cannons 10 | . . . . 1 8 1 AOE 26 | 1 12 2 . . 10 1 Classes Destroyed 12 | 2 5 . . 1 3 1 Worker 12 | . 2 1 . . 9 . Builder 3 | . 2 . . . . 1 Tunneler 2 | 1 . 1 . . . . Hauler 2 | . . . . . . 2 Recycler 3 | . 2 . . . . 1 Mechanic 2 | . . . . . 1 1 Watcher 2 | . 2 . . . . . Swarmer 10 | . 5 3 . . . 2 Grunt 28 | 1 10 2 . . 14 1 Duelist 1 | . . . . 1 . . Sentry 3 | . . . . . 3 . Hunter 2 | . . . . . 2 . Best Kill Streak 10 | 2 6 3 . 1 10 6 Combat Bots Only 6 | 1 4 3 . 1 6 3 Max Kills in Single Turn 3 | 2 3 1 . 1 3 2 Gunslinging . | . . . . . . . Exploded 3 | 1 3 1 . . 2 1 Melee . | . . . . . . . Uniques/NPCs Destroyed . | . . . . . . . Combat | -11 -10 -10 -9 -9 -8 -8 -------- Run | Yrd Mat Min Mat Min Mat Sto Hostile Shots Fired 285 | 5 46 55 1 . 84 94 Missed 85 | 2 15 12 . . 26 30 Damage Taken 2844 | 33 508 446 29 . 919 909 Core 780 | . 110 120 . . 145 405 Absorbed by Shields . | . . . . . . . Redirected to Shielding 152 | . . . 2 . 49 101 Regen/Repaired (Parts) 86 | . 86 . . . . . Core Remaining (%) 69 | 100 . 8 . 100 . . Volleys Fired 120 | 5 39 18 . 4 32 22 Largest 2 | 2 2 1 . 2 2 2 Hottest 131 | 90 90 30 . 91 131 55 Shots Fired 174 | 10 56 18 . 8 56 26 Gun 82 | 10 32 11 . 4 8 17 Cannon 34 | . . . . 4 30 . Launcher 55 | . 24 7 . . 18 6 Special 3 | . . . . . . 3 Kinetic 42 | . 10 11 . 4 . 17 Thermal 65 | 5 15 . . 4 38 3 Explosive 55 | . 24 7 . . 18 6 Electromagnetic 12 | 5 7 . . . . . Robot Hit Streak 10 | 3 6 10 . 5 5 6 Robot Miss Streak 5 | 2 3 1 . 3 3 5 Penetration Max . | . . . . . . . Secondary Targets . | . . . . . . . Shots Hit Robots 82 | 5 20 10 . 3 27 17 Core Hits 123 | 3 37 14 . 2 55 12 Critical Kills . | . . . . . . . Critical Parts Destroyed 1 | . . . . . . 1 Critical Strikes 4 | . 3 . . . . 1 Burn 3 | . 3 . . . . . Destroy 1 | . . . . . . 1 Melee Attacks . | . . . . . . . Impact . | . . . . . . . Slashing . | . . . . . . . Piercing . | . . . . . . . Sneak Attacks . | . . . . . . . Combat Hostiles . | . . . . . . . Follow-up Attacks . | . . . . . . . Damage Inflicted 4657 | 116 1276 342 . 49 2095 779 Guns 654 | 52 177 68 . 30 72 255 Cannons 494 | . . . . 19 475 . Explosions 3496 | 64 1099 272 . . 1548 513 Melee . | . . . . . . . Ramming 2 | . . 2 . . . . Kinetic 342 | . . 68 . 19 . 255 Thermal 790 | 89 113 . . 30 547 11 Explosive 3336 | . 1099 272 . . 1452 513 Electromagnetic 187 | 27 64 . . . 96 . Impact . | . . . . . . . Slashing . | . . . . . . . Piercing . | . . . . . . . Highest Corruption 1 | . 1 1 . . . . Average Corruption 1 | . 1 1 . . . . Corruption Purged . | . . . . . . . Corruption Blocked . | . . . . . . . Effects 4 | . . 4 . . . . Heat Flow Errors 2 | . . 2 . . . . Parts Fused 1 | . . 1 . . . . Data Loss (minor) 1 | . . 1 . . . . Overload Shots . | . . . . . . . Overflow Damage 61 | . 34 1 . . 2 24 Projectiles . | . . . . . . . Explosions 61 | . 34 1 . . 2 24 Melee . | . . . . . . . Knockbacks . | . . . . . . . Impact . | . . . . . . . Kinetic . | . . . . . . . Secondary . | . . . . . . . Self-Inflicted Damage 226 | . 108 49 . . 14 55 Shots 10 | . 4 2 . . 1 3 Rammed 2 | . 1 1 . . . . Targets Rammed 2 | . 1 1 . . . . Kicked . | . . . . . . . Crushed . | . . . . . . . Highest Temperature 224 | 138 132 224 . 110 153 8 Average Temperature 52 | 63 45 67 . 56 44 8 Received Heat Transfer 1020 | 18 114 87 9 . 468 324 Siege Activations . | . . . . . . . Robots Corrupted . | . . . . . . . Combat Hostiles . | . . . . . . . Parts Fried . | . . . . . . . Impact Corruptions . | . . . . . . . Robots Melted . | . . . . . . . Combat Hostiles . | . . . . . . . Parts Melted 2 | . 1 . . 1 . . Heat Transferred 1778 | 224 555 . . 74 888 37 Parts Sabotaged . | . . . . . . . Parts Stolen . | . . . . . . . Parts Stripped . | . . . . . . . Power Chain Reactions 2 | 1 . . . . 1 . Alert | -11 -10 -10 -9 -9 -8 -8 ------- Run | Yrd Mat Min Mat Min Mat Sto Peak Influence 474 | 25 372 298 141 149 474 332 Initial 176 | . 16 135 37 54 57 176 Average 169 | 2 203 225 86 132 194 218 Maximum Alert Level 2 | . 1 1 . . 2 1 Low Security (%) 62 | 100 47 21 100 100 53 60 Level 1 36 | . 52 78 . . 39 39 Level 2 1 | . . . . . 6 . Level 3 . | . . . . . . . Level 4 . | . . . . . . . Level 5 . | . . . . . . . High Security . | . . . . . . . Max Security . | . . . . . . . Squads Dispatched 9 | . 3 . 1 . 4 1 Investigation 2 | . 1 . . . 1 . Extermination . | . . . . . . . Reinforcement 7 | . 2 . 1 . 3 1 Assault . | . . . . . . . Garrison . | . . . . . . . Intercept . | . . . . . . . Searches Triggered . | . . . . . . . Construction Impeded 3 | . . . . . 2 1 Haulers Reinforced . | . . . . . . . Active Scanning Responses . | . . . . . . . Cargo Convoy Interrupts . | . . . . . . . Stealth | -11 -10 -10 -9 -9 -8 -8 --------- Run | Yrd Mat Min Mat Min Mat Sto Distress Signals 7 | . 2 . 1 . 3 1 Communications Jammed . | . . . . . . . Distress Signals . | . . . . . . . Times Spotted 85 | 1 21 10 7 3 31 12 Peak Tracking Total 7 | 1 5 4 3 2 7 7 Tactical Retreats 1 | . . . 1 . . . Traps | -11 -10 -10 -9 -9 -8 -8 ------- Run | Yrd Mat Min Mat Min Mat Sto Traps Triggered 2 | . 2 . . . . . Indirectly . | . . . . . . . Trap Hack Attempts . | . . . . . . . Triggered . | . . . . . . . Disarmed . | . . . . . . . Reprogrammed . | . . . . . . . Reused . | . . . . . . . Traps Extracted . | . . . . . . . Installed . | . . . . . . . Triggered . | . . . . . . . Machines | -11 -10 -10 -9 -9 -8 -8 ---------- Run | Yrd Mat Min Mat Min Mat Sto Machines Disabled 10 | . 3 . . . 4 3 Max in Single Turn 2 | . 1 . . . 2 2 Machines Repaired . | . . . . . . . Machines Dismantled . | . . . . . . . Machines Sabotaged . | . . . . . . . Overloaded Fab Kills . | . . . . . . . Hacking | -11 -10 -10 -9 -9 -8 -8 --------- Run | Yrd Mat Min Mat Min Mat Sto Machines Accessed 9 | . 5 . . . 1 3 Terminals 6 | . 4 . . . . 2 Fabricators . | . . . . . . . Repair Stations 2 | . 1 . . . 1 . Recycling Units 1 | . . . . . . 1 Scanalyzers . | . . . . . . . Garrison Access . | . . . . . . . Total Hacks 25 | . 11 . . . 5 9 Successful 15 | . 10 . . . 1 4 Failed 10 | . 1 . . . 4 5 Catastrophic . | . . . . . . . Database Lockouts . | . . . . . . . Manual 2 | . 1 . . . . 1 Terminals 12 | . 7 . . . . 5 Fabricators . | . . . . . . . Repair Stations 9 | . 4 . . . 5 . Recycling Units 4 | . . . . . . 4 Scanalyzers . | . . . . . . . Garrison Access . | . . . . . . . Terminal Hacks 8 | . 6 . . . . 2 Record 5 | . 3 . . . . 2 Terminal Index 1 | . 1 . . . . . Alert Level 1 | . 1 . . . . . Zone Layout 1 | . 1 . . . . . Fabricator Hacks . | . . . . . . . Repair Station Hacks 5 | . 4 . . . 1 . Scan Component 3 | . 2 . . . 1 . Repair 2 | . 2 . . . . . Recycling Unit Hacks 2 | . . . . . . 2 Process 2 | . . . . . . 2 Scanalyzer . | . . . . . . . Garrison Access Hacks . | . . . . . . . Unauthorized Hacks . | . . . . . . . Terminals . | . . . . . . . Fabricators . | . . . . . . . Repair Stations . | . . . . . . . Recycling Units . | . . . . . . . Scanalyzers . | . . . . . . . Garrison Access . | . . . . . . . Data Cores Recovered . | . . . . . . . Used . | . . . . . . . Hacking Detections 8 | . 4 . . . 1 3 Full Trace Events 4 | . 2 . . . 1 1 Feedback Events . | . . . . . . . Feedback Blocked . | . . . . . . . Robot Schematics Acquired . | . . . . . . . Robots Built . | . . . . . . . Authchips . | . . . . . . . Time . | . . . . . . . Total Robot Build Rating . | . . . . . . . Part Schematics Acquired . | . . . . . . . Parts Built . | . . . . . . . Authchips . | . . . . . . . Time . | . . . . . . . Total Part Build Rating . | . . . . . . . Parts Repaired 2 | . 2 . . . . . Time 64 | . 64 . . . . . Parts Recycled . | . . . . . . . Recycled Matter 7 | . . . . . . 7 Retrieved Matter . | . . . . . . . Retrieved Components . | . . . . . . . Parts Scanalyzed . | . . . . . . . Part Schematics Acquired . | . . . . . . . Parts Damaged . | . . . . . . . Bothacking | -11 -10 -10 -9 -9 -8 -8 ------------ Run | Yrd Mat Min Mat Min Mat Sto Used RIF Installer . | . . . . . . . Robots Hacked . | . . . . . . . Non-combat . | . . . . . . . Combat . | . . . . . . . Robot Hacks Applied . | . . . . . . . Relay Couplers Released . | . . . . . . . Fabnet Peak Effective % . | . . . . . . . Robots Rewired . | . . . . . . . Allies Hacked . | . . . . . . . Hacks Repelled . | . . . . . . . Allies | -11 -10 -10 -9 -9 -8 -8 -------- Run | Yrd Mat Min Mat Min Mat Sto Total Allies 1 | . . 1 . . . . Largest Group 1 | . . 1 1 1 1 . Highest-Rated Group 31 | . . 31 31 31 31 . Highest-Rated Ally 31 | . . 31 31 31 31 . Total Orders . | . . . . . . . Ally Attacks 35 | . . 2 11 11 11 . Total Damage 354 | . . 42 103 103 106 . Kills 9 | . . 2 3 3 1 . Allies Corrupted . | . . . . . . . Allies Melted 1 | . . . . . 1 . Intel | -11 -10 -10 -9 -9 -8 -8 ------- Run | Yrd Mat Min Mat Min Mat Sto Robot Analysis Total . | . . . . . . . Derelict Logs Recovered 3 | . . 2 . 1 . . Drone Launches . | . . . . . . . Drone Recoveries . | . . . . . . . Exploration | -11 -10 -10 -9 -9 -8 -8 ------------- Run | Yrd Mat Min Mat Min Mat Sto Turns Passed 2632 | 174 600 444 279 397 550 188 Spaces Moved 1654 | 175 444 223 168 304 244 96 Core 53 | 41 . . . . 1 11 Treads 468 | . 54 168 165 65 3 13 Legs 9 | 9 . . . . . . Wheels 589 | 125 390 . 3 . . 71 Hover 72 | . . . . . 72 . Flight 463 | . . 55 . 239 168 1 Fastest Speed 50 | 50 80 160 105 114 52 95 Average Speed 126 | 75 90 173 159 123 168 132 Slowest Speed 280 | 120 160 280 160 160 280 250 Overloaded Moves . | . . . . . . . Propulsion Burnouts . | . . . . . . . Robots Hopped . | . . . . . . . Cave-ins Triggered . | . . . . . . . Exploration Rate (%) 32 | 6 53 40 13 62 27 24 Regions Visited 6 Branch Regions 3 Pre-discovered Areas 2 | . . 1 . 1 . . Known Exits Taken . | . . . . . . . Unknown Exits Taken 6 | 1 1 1 1 1 1 . Scrap Searched . | . . . . . . . Spaces Dug . | . . . . . . . Terrain Destroyed 299 | . 131 44 . . 74 50 Melee . | . . . . . . . Projectile 2 | . . . . . 2 . AOE 297 | . 131 44 . . 72 50 Terrain Rammed . | . . . . . . . Walls Destroyed . | . . . . . . . Machines Disabled . | . . . . . . . Actions | -11 -10 -10 -9 -9 -8 -8 --------- Run | Yrd Mat Min Mat Min Mat Sto Total 2006 | 206 593 261 179 317 325 125 Wait 84 | 10 66 . . . 8 . Move 1648 | 174 443 222 167 303 243 96 Hop . | . . . . . . . Pick Up 44 | 10 16 2 4 3 9 . Fast Attach 23 | . 2 7 2 . 9 3 Attach 28 | 5 11 2 1 . 7 2 Detach 6 | . 3 1 . . 2 . Swap 23 | 2 3 3 2 3 8 2 Drop 28 | . 9 5 3 4 7 . Fire 120 | 5 39 18 . 4 32 22 Melee . | . . . . . . . Ram 2 | . 1 1 . . . . Kick . | . . . . . . . Crush . | . . . . . . . Escape Stasis . | . . . . . . . Rewire . | . . . . . . . Trap . | . . . . . . . Miscellaneous . | . . . . . . . Route ------- -11/Scrapyard -10/Materials (discovered 2 exits: *Mat / [*Min]) -10/Mines -9/Materials -9/Mines -8/Materials -8/Storage History --------- Turn | Location | Event 2 | -11/Scrapyard | Met Revision 17 141 | -11/Scrapyard | Discovered new exit (range 8) 175 | -11/Scrapyard | Entered Materials 354 | -10/Materials | Build established: Mutant 367 | -10/Materials | Discovered new exit (range 16) 503 | -10/Materials | Discovered new exit (range 7) 584 | -10/Materials | Repaired Grenade Launcher 624 | -10/Materials | Repaired Lgt. Nuclear Core 775 | -10/Materials | Entered Mines 818 | -10/Mines | Core integrity fell below 50% 845 | -10/Mines | Core integrity fell below 20% 868 | -10/Mines | Lost 4 parts (1n1u2w) 889 | -10/Mines | Learned Materials stockpile data 970 | -10/Mines | Discovered new exit (range 7) 972 | -10/Mines | Learned Materials stockpile data 1004 | -10/Mines | Escorted by a lone wolf Derelict 1024 | -10/Mines | Learned location of Storage (-8) 1114 | -10/Mines | Joined a pair of Derelicts in attacking an 0b10 outpost 1219 | -10/Mines | Entered Materials 1219 | -9/Materials | Accompanied by 1 ally 1219 | -9/Materials | Evolved 2 slots: Power x1, Propulsion x1 1344 | -9/Materials | Build established: Scavenger-Mutant 1488 | -9/Materials | Discovered new exit (range 7) 1498 | -9/Materials | Entered Mines 1498 | -9/Mines | Accompanied by 1 ally 1528 | -9/Mines | Met a Derelict bent on vengeance 1787 | -9/Mines | Discovered new exit (range 10) 1814 | -9/Mines | Learned location of Zion (-7) 1895 | -9/Mines | Entered Materials 1895 | -8/Materials | Accompanied by 1 ally 1895 | -8/Materials | Evolved 2 slots: Utility x2 2354 | -8/Materials | Lost 4 parts (1p2n1u) 2384 | -8/Materials | Discovered new exit (range 11) 2445 | -8/Materials | Entered Storage 2466 | -8/Storage | Lost 5 parts (1p3n1w) 2610 | -8/Storage | Core integrity fell below 50% 2622 | -8/Storage | Core integrity fell below 20% 2633 | -8/Storage | Destroyed by G-47 Trooper with Particle Gun Last Messages --------------- U-05 Engineer builds a Wall. The unstable cave ceiling collapses. K-01 Serf collects debris. R-06 Scavenger collects Flight Unit. U-05 Engineer lays Concrete. Acquired 16 matter. U-05 Engineer destroyed. R-06 Scavenger collects Lgt. Ion Engine. U-05 Engineer lays Concrete. K-01 Serf collects debris. R-06 Scavenger collects Lgt. Ion Engine. The unstable cave ceiling collapses. U-05 Engineer lays Concrete. The unstable cave ceiling collapses. U-05 Engineer builds a Wall. R-06 Scavenger collects Structural Scanner. K-01 Serf collects debris. Acquired Cesium-ion Thruster. Imp. Utility Shielding destroyed. [Achievement: First Step to Greatness] Map ----- +----------------------------------------------------+ | ??????# # """ R"#????????????????????????? | | ??????# # """#????????????????????????? | | ??????# # """ ####????????????????????????? | | ??????# # """ #???????????????????????????? | | ??????# # """ #???????????????????????????? | | ??????# # #??????#####????????????????? | | ??????# ###########"T"#########????????? | | ??????# ^ ^ ?????????? | | ??????# ??????????? | | ??????# ^^ ????????????? | | ??????########### """ #?????????????? | | ?????????? # "" """ #?????????????? | | ?????????? """ # "T """ #?????????????? | | ?????????? """ # "" #?????????????? | | ?????????? """ # #?????????????? | | ?????????? + #?????????????? | | ?????????? """ # ###"Y"#### #?????????????? | | ????????? ??" # #?#"""#??? #?????????????? | | ????????? ??" ?# #######??? #?????????????? | | ????????? ?? ??#rg ## # ##??? #?????????????? | | ?????????#??#?### gg# #### #?????????????? | | ??????????????# k # #?????????????? | | ?????????????## # #?????????????? | | ?????????????# # # #?????????????? | | ?????????????" r # #? #?????????????? | | ?????????????" Y @ #? #?????????????? | | ?????????????" ]== #? #?????????????? | | ?????????????# =%] #? ???????????????? | | ?????????????# ] #?????????????????? | | ?????????????#### # #?????????????????? | | ????????????????## u## ##?????????????????? | | ?????????????????# ## ##??????????????????? | | ?????????????????# ??????????????????? | | ?????????????????# #####?????????????????? | | ?????????????????# ##+##+#?????????????????????? | | ????????????????? #? ????????????????????????? | | ?????????????????# #?? ???????????????????????? | | ?????????????????# ????????????????????????????? | | ?????????????????# ????????????????????????????? | | ?????????????????# ????????????????????????????? | | ?????????????????? ????????????????????????????? | | ???????????????????????????????????????????????? | | ???????????????????????????????????????????????? | | ???????????????????????????????????????????????? | | ???????????????????????????????????????????????? | | ???????????????????????????????????????????????? | | ???????????????????????????????????????????????? | | ???????????????????????????????????????????????? | | ???????????????????????????????????????????????? | | ???????????????????????????????????????????????? | +----------------------------------------------------+ Best States ------------- Heat Dissipation 59 Energy Generation 19 Energy Capacity 265 Matter Stores 300 Matter Capacity 300 Sight Range 16 Terrain Scan Density 10 Propulsion Shielding 33 Utility Shielding 66 Evasion (%) 54 Recoil Reduction 2 Offensive Hacking 10 Item Schematics ----------------- None Robot Schematics ------------------ None Fabricated ------------ Nothing Alien Tech Used ----------------- None Achievements -------------- Close Call Crack Shot First Step to Greatness Loot Pinata One Hack Too Far Oops Part-time Mechanic Remodeling Storm Trooper Tourist Uninvited Guest Universal Adapter Challenges ------------ None Game ------ Seed MultinovaProtonStorage Manual? 0 Play Time 01:03:31 Cumulative 1.0 hours Start 2024.03.31 @ 17:17:16 End 2024.03.31 @ 18:22:53 Sessions 1 Manual Loads 0 Difficulty Rogue Special Mode None Game No. 1 Rogue 1 Adventurer 0 Explorer 0 Win Type - Total 0 Types 0/0/0/0/0/0/0/0/0 Lore% 0 Gallery% 3 Achievement% 4 Wizard Run 0 Options --------- Layout 1 ASCII 0 Keyboard 0 Movement Mouse Keybinds 0 Fullscreen 1 Font 24/Smallcaps Map View 50x35 Zoom Use 0% Tactical HUD 0 Map Filters NONE Filters NONE Steam 1 RUN: a047ccfa-73dd-4b4c-b03c-e027063638ff